[Event "Schack-SM 2023: Veteran-SM 65+"]
[Site "Helsingborg Arena, Mellersta Stenbocksgatan 14, Helsingborg, Sweden"]
[Date "2023.07.06"]
[Round "6.3"]
[White "Malmdin, Nils-Ake"]
[Black "Carlsson, Ingvar"]
[Result "0-1"]
[TimeControl "90 minutes for 40 moves + 30 minutes for the rest of games + 30 seconds per move from move one."]
[WhiteTitle "FM"]
[WhiteElo "2091"]
[BlackElo "1998"]

1. e4 {[%clk 01:30:44]} {[%emt 00:00:14]} e6 {[%clk 01:30:54]} {[%emt
00:00:07]} 2. d4 {[%clk 01:30:45]} {[%emt 00:00:29]} d5 {[%clk 01:31:17]}
{[%emt 00:00:07]} 3. Nc3 {[%clk 01:30:55]} {[%emt 00:00:20]} Nf6 {[%clk
01:31:34]} {[%emt 00:00:13]} 4. exd5 {[%clk 01:31:11]} {[%emt 00:00:14]} exd5
{[%clk 01:30:54]} {[%emt 00:01:11]} 5. Bg5 {[%clk 01:31:29]} {[%emt 00:00:10]}
Be7 {[%clk 01:26:28]} {[%emt 00:04:57]} 6. Qd2 {[%clk 01:30:50]} {[%emt
00:01:09]} O-O {[%clk 01:24:53]} {[%emt 00:02:06]} 7. O-O-O {[%clk 01:25:15]}
{[%emt 00:06:04]} c6 {[%clk 01:21:23]} {[%emt 00:04:00]} 8. h4 {[%clk
01:20:44]} {[%emt 00:05:00]} b5 {[%clk 01:21:07]} {[%emt 00:00:48]} 9. f3
{[%clk 01:16:07]} {[%emt 00:05:06]} a5 {[%clk 01:16:02]} {[%emt 00:05:35]} 10.
Bd3 {[%clk 01:09:40]} {[%emt 00:06:55]} a4 {[%clk 01:12:05]} {[%emt 00:04:30]}
11. Re1 {[%clk 01:07:13]} {[%emt 00:02:54]} b4 {[%clk 01:11:15]} {[%emt
00:01:22]} 12. Nd1 {[%clk 01:07:25]} {[%emt 00:00:16]} Ba6 {[%clk 01:08:42]}
{[%emt 00:03:05]} 13. Ne3 {[%clk 01:04:16]} {[%emt 00:03:38]} b3 {[%clk
01:04:32]} {[%emt 00:04:42]} 14. a3 {[%clk 01:04:19]} {[%emt 00:00:27]} Bxd3
{[%clk 01:01:51]} {[%emt 00:03:11]} 15. Qxd3 {[%clk 01:03:34]} {[%emt
00:01:13]} bxc2 {[%clk 01:00:55]} {[%emt 00:01:27]} 16. Nf5 {[%clk 00:56:32]}
{[%emt 00:07:31]} Re8 {[%clk 01:00:46]} {[%emt 00:00:39]} 17. Nh3 {[%clk
00:56:24]} {[%emt 00:00:39]} Nbd7 {[%clk 01:00:12]} {[%emt 00:01:05]} 18. Nf2
{[%clk 00:41:07]} {[%emt 00:15:45]} Bf8 {[%clk 00:22:11]} {[%emt 00:38:32]} 19.
Rxe8 {[%clk 00:38:50]} {[%emt 00:02:47]} Qxe8 {[%clk 00:22:33]} {[%emt
00:00:08]} 20. Qxc2 {[%clk 00:38:56]} {[%emt 00:00:22]} c5 {[%clk 00:18:57]}
{[%emt 00:04:08]} 21. Nd3 {[%clk 00:34:34]} {[%emt 00:04:51]} cxd4 {[%clk
00:18:44]} {[%emt 00:00:45]} 22. Re1 {[%clk 00:34:51]} {[%emt 00:00:11]} Qb8
{[%clk 00:18:13]} {[%emt 00:01:02]} 23. Nxd4 {[%clk 00:34:06]} {[%emt
00:01:14]} Qb7 {[%clk 00:15:32]} {[%emt 00:03:13]} 24. Bd2 {[%clk 00:32:31]}
{[%emt 00:02:04]} Rc8 {[%clk 00:15:17]} {[%emt 00:00:46]} 25. Bc3 {[%clk
00:32:58]} {[%emt 00:00:02]} Nb6 {[%clk 00:15:10]} {[%emt 00:00:37]} 26. Nb4
{[%clk 00:28:11]} {[%emt 00:05:16]} h6 {[%clk 00:07:10]} {[%emt 00:08:31]} 27.
g4 {[%clk 00:27:59]} {[%emt 00:00:42]} Bxb4 {[%clk 00:04:21]} {[%emt 00:03:19]}
28. axb4 {[%clk 00:28:04]} {[%emt 00:00:25]} a3 {[%clk 00:04:06]} {[%emt
00:00:46]} 29. b3 {[%clk 00:22:44]} {[%emt 00:05:48]} Qc7 {[%clk 00:03:29]}
{[%emt 00:01:08]} 30. Kd2 {[%clk 00:20:10]} {[%emt 00:03:03]} Qf4+ {[%clk
00:03:34]} {[%emt 00:00:26]} 31. Kd3 {[%clk 00:14:09]} {[%emt 00:06:30]} Nfd7
{[%clk 00:01:41]} {[%emt 00:02:24]} 32. Qe2 {[%clk 00:14:04]} {[%emt 00:00:34]}
a2 {[%clk 00:01:01]} {[%emt 00:01:12]} 33. Nf5 {[%clk 00:10:22]} {[%emt
00:04:10]} Kh8 {[%clk 00:00:38]} {[%emt 00:00:55]} 34. Bxg7+ {[%clk 00:09:18]}
{[%emt 00:01:34]} Kh7 {[%clk 00:01:06]} {[%emt 00:00:02]} 35. Bc3 {[%clk
00:04:32]} {[%emt 00:05:16]} Nc4 {[%clk 00:01:23]} {[%emt 00:00:13]} 36. Nd4
{[%clk 00:03:12]} {[%emt 00:01:49]} Nce5+ {[%clk 00:01:31]} {[%emt 00:00:22]}
37. Kc2 {[%clk 00:01:39]} {[%emt 00:02:02]} Qxd4 {[%emt 00:02:02]} 0-1

[Event "Schack-SM 2023: Veteran-SM 50+"]
[Site "Helsingborg Arena, Mellersta Stenbocksgatan 14, Helsingborg, Sweden"]
[Date "2023.07.06"]
[Round "6.3"]
[White "Moborn, Anders"]
[Black "Ljung, Rickard"]
[Result "1/2-1/2"]
[TimeControl "90 minutes for 40 moves + 30 minutes for the rest of games + 30 seconds per move from move one."]
[WhiteElo "1956"]
[BlackElo "1939"]

1. d4 {[%clk 01:30:57]} {[%emt 00:00:02]} Nf6 {[%clk 01:30:53]} {[%emt
00:00:07]} 2. c4 {[%clk 01:31:14]} {[%emt 00:00:13]} g6 {[%clk 01:31:13]}
{[%emt 00:00:11]} 3. Nc3 {[%clk 01:31:34]} {[%emt 00:00:09]} Bg7 {[%clk
01:31:35]} {[%emt 00:00:07]} 4. e4 {[%clk 01:31:53]} {[%emt 00:00:12]} O-O
{[%clk 01:31:58]} {[%emt 00:00:07]} 5. Nf3 {[%clk 01:31:41]} {[%emt 00:00:42]}
d6 {[%clk 01:32:12]} {[%emt 00:00:16]} 6. h3 {[%clk 01:32:01]} {[%emt
00:00:09]} e5 {[%clk 01:32:19]} {[%emt 00:00:24]} 7. d5 {[%clk 01:32:14]}
{[%emt 00:00:17]} a5 {[%clk 01:31:55]} {[%emt 00:00:55]} 8. Be3 {[%clk
01:29:27]} {[%emt 00:03:16]} Na6 {[%clk 01:31:54]} {[%emt 00:00:31]} 9. g4
{[%clk 01:29:45]} {[%emt 00:00:12]} h5 {[%clk 01:31:30]} {[%emt 00:00:53]} 10.
g5 {[%clk 01:26:40]} {[%emt 00:03:36]} Ne8 {[%clk 01:31:29]} {[%emt 00:00:31]}
11. h4 {[%clk 01:21:53]} {[%emt 00:05:18]} Nc5 {[%clk 01:29:07]} {[%emt
00:02:51]} 12. Nd2 {[%clk 01:14:11]} {[%emt 00:08:12]} f5 {[%clk 01:24:26]}
{[%emt 00:05:11]} 13. Bxc5 {[%clk 01:06:04]} {[%emt 00:08:37]} dxc5 {[%clk
01:24:45]} {[%emt 00:00:11]} 14. Bh3 {[%clk 01:05:20]} {[%emt 00:01:14]} Nd6
{[%clk 01:24:26]} {[%emt 00:00:50]} 15. Qe2 {[%clk 01:05:02]} {[%emt 00:00:47]}
Bd7 {[%clk 01:23:12]} {[%emt 00:01:44]} 16. a4 {[%clk 00:58:48]} {[%emt
00:06:44]} Rf7 {[%clk 01:21:34]} {[%emt 00:02:08]} 17. O-O-O {[%clk 00:48:19]}
{[%emt 00:10:59]} Ra6 {[%clk 01:20:22]} {[%emt 00:01:42]} 18. f3 {[%clk
00:47:23]} {[%emt 00:01:26]} f4 {[%clk 01:11:21]} {[%emt 00:09:31]} 19. Qg2
{[%clk 00:42:54]} {[%emt 00:04:58]} Bf8 {[%clk 01:09:06]} {[%emt 00:02:45]} 20.
Nb5 {[%clk 00:35:31]} {[%emt 00:07:54]} Re7 {[%clk 01:03:02]} {[%emt 00:06:34]}
21. Kc2 {[%clk 00:33:45]} {[%emt 00:02:16]} Kg7 {[%clk 00:55:58]} {[%emt
00:07:34]} 22. Kc3 {[%clk 00:32:54]} {[%emt 00:01:21]} Kh7 {[%clk 00:55:40]}
{[%emt 00:00:48]} 23. Nb3 {[%clk 00:31:49]} {[%emt 00:01:35]} b6 {[%clk
00:55:45]} {[%emt 00:00:25]} 24. Nc1 {[%clk 00:31:06]} {[%emt 00:01:13]} Bg7
{[%clk 00:55:58]} {[%emt 00:00:17]} 25. Nd3 {[%clk 00:30:51]} {[%emt 00:00:45]}
Ra8 {[%clk 00:51:16]} {[%emt 00:05:13]} 26. b3 {[%clk 00:30:26]} {[%emt
00:00:54]} Qc8 {[%clk 00:40:16]} {[%emt 00:11:29]} 27. Bxd7 {[%clk 00:28:57]}
{[%emt 00:02:00]} Qxd7 {[%clk 00:40:38]} {[%emt 00:00:09]} 28. Qh3 {[%clk
00:29:21]} {[%emt 00:00:05]} Qd8 {[%clk 00:40:52]} {[%emt 00:00:16]} 29. Kc2
{[%clk 00:29:07]} {[%emt 00:00:44]} Qe8 {[%clk 00:35:57]} {[%emt 00:05:26]} 30.
Rh2 {[%clk 00:29:05]} {[%emt 00:00:32]} Bh8 {[%clk 00:35:57]} {[%emt 00:00:30]}
31. Rhd2 {[%clk 00:29:25]} {[%emt 00:00:10]} Bg7 {[%clk 00:35:30]} {[%emt
00:00:57]} 32. Nc1 {[%clk 00:28:18]} {[%emt 00:01:37]} Qd8 {[%clk 00:35:41]}
{[%emt 00:00:18]} 33. Ne2 {[%clk 00:28:25]} {[%emt 00:00:23]} Qe8 {[%clk
00:35:30]} {[%emt 00:00:42]} 34. Nec3 {[%clk 00:28:36]} {[%emt 00:00:18]} Qd8
{[%clk 00:35:21]} {[%emt 00:00:38]} 35. Ne2 {[%clk 00:27:09]} {[%emt 00:01:56]}
1/2-1/2

[Event "Schack-SM 2023: Sverigemastarklassen"]
[Site "Helsingborg Arena, Mellersta Stenbocksgatan 14, Helsingborg, Sweden"]
[Date "2023.07.06"]
[Round "6.5"]
[White "Blomqvist, Erik"]
[Black "Olsson, William"]
[Result "0-1"]
[TimeControl "90 minutes for 40 moves + 30 minutes for the rest of the game + 30 seconds per move from move one."]
[WhiteTitle "GM"]
[BlackTitle "FM"]
[WhiteElo "2500"]
[BlackElo "2383"]

1. e4 {[%clk 01:30:51]} {[%emt 00:00:08]} c5 {[%clk 01:30:45]} {[%emt
00:00:16]} 2. Nf3 {[%clk 01:31:13]} {[%emt 00:00:07]} d6 {[%clk 01:31:13]}
{[%emt 00:00:03]} 3. d4 {[%clk 01:31:34]} {[%emt 00:00:09]} cxd4 {[%clk
01:31:38]} {[%emt 00:00:05]} 4. Nxd4 {[%clk 01:31:57]} {[%emt 00:00:07]} Nf6
{[%clk 01:32:02]} {[%emt 00:00:05]} 5. Nc3 {[%clk 01:32:16]} {[%emt 00:00:10]}
g6 {[%clk 01:32:29]} {[%emt 00:00:04]} 6. Be3 {[%clk 01:32:38]} {[%emt
00:00:08]} Bg7 {[%clk 01:32:55]} {[%emt 00:00:04]} 7. f3 {[%clk 01:32:56]}
{[%emt 00:00:12]} O-O {[%clk 01:33:19]} {[%emt 00:00:05]} 8. Qd2 {[%clk
01:33:19]} {[%emt 00:00:08]} Nc6 {[%clk 01:33:45]} {[%emt 00:00:04]} 9. Bc4
{[%clk 01:33:31]} {[%emt 00:00:17]} Bd7 {[%clk 01:34:09]} {[%emt 00:00:07]} 10.
O-O-O {[%clk 01:33:40]} {[%emt 00:00:20]} Rc8 {[%clk 01:34:33]} {[%emt
00:00:07]} 11. Nxc6 {[%clk 01:33:57]} {[%emt 00:00:13]} Bxc6 {[%clk 01:23:36]}
{[%emt 00:11:27]} 12. Bb3 {[%clk 01:34:04]} {[%emt 00:00:21]} a5 {[%clk
01:07:55]} {[%emt 00:16:12]} 13. a4 {[%clk 01:34:09]} {[%emt 00:00:25]} Qe8
{[%clk 01:07:36]} {[%emt 00:00:50]} 14. Qe2 {[%clk 01:33:47]} {[%emt 00:00:52]}
Nd7 {[%clk 01:00:05]} {[%emt 00:08:01]} 15. h4 {[%clk 01:33:53]} {[%emt
00:00:24]} Nc5 {[%clk 00:56:02]} {[%emt 00:04:33]} 16. Bxc5 {[%clk 01:33:53]}
{[%emt 00:00:30]} dxc5 {[%clk 00:56:28]} {[%emt 00:00:04]} 17. e5 {[%clk
01:34:17]} {[%emt 00:00:06]} e6 {[%clk 00:45:08]} {[%emt 00:11:49]} 18. h5
{[%clk 01:29:20]} {[%emt 00:05:27]} Qe7 {[%clk 00:45:26]} {[%emt 00:00:12]} 19.
f4 {[%clk 00:46:42]} {[%emt 00:43:09]} Rfd8 {[%clk 00:43:15]} {[%emt 00:02:40]}
20. h6 {[%clk 00:41:56]} {[%emt 00:05:17]} Rxd1+ {[%clk 00:42:58]} {[%emt
00:00:47]} 21. Nxd1 {[%clk 00:41:56]} {[%emt 00:00:28]} Bf8 {[%clk 00:43:20]}
{[%emt 00:00:10]} 22. Ne3 {[%clk 00:25:22]} {[%emt 00:17:04]} c4 {[%clk
00:35:02]} {[%emt 00:08:48]} 23. Qxc4 {[%clk 00:20:12]} {[%emt 00:05:39]} Qe8
{[%clk 00:35:01]} {[%emt 00:00:31]} 24. Qd4 {[%clk 00:11:48]} {[%emt 00:08:55]}
b5 {[%clk 00:30:10]} {[%emt 00:05:22]} 25. axb5 {[%clk 00:09:21]} {[%emt
00:02:56]} Bxb5 {[%clk 00:30:34]} {[%emt 00:00:06]} 26. Ng4 {[%clk 00:09:23]}
{[%emt 00:00:28]} Qc6 {[%clk 00:29:09]} {[%emt 00:01:55]} 27. Qd2 {[%clk
00:07:10]} {[%emt 00:02:43]} a4 {[%clk 00:21:19]} {[%emt 00:08:20]} 28. Ba2
{[%clk 00:07:39]} {[%emt 00:00:01]} Bc4 {[%clk 00:21:18]} {[%emt 00:00:30]} 29.
Bxc4 {[%clk 00:02:34]} {[%emt 00:05:37]} Qxc4 {[%clk 00:21:42]} {[%emt
00:00:05]} 30. Kb1 {[%clk 00:03:02]} {[%emt 00:00:02]} a3 {[%clk 00:10:39]}
{[%emt 00:11:34]} 31. b3 {[%clk 00:03:30]} {[%emt 00:00:01]} a2+ {[%clk
00:10:33]} {[%emt 00:00:35]} 32. Kb2 {[%clk 00:01:42]} {[%emt 00:02:18]} Qa6
{[%clk 00:10:41]} {[%emt 00:00:22]} 33. b4 {[%clk 00:00:39]} {[%emt 00:01:33]}
Ra8 {[%clk 00:07:42]} {[%emt 00:03:29]} 34. Ka1 {[%clk 00:01:06]} {[%emt
00:00:04]} Qa3 {[%clk 00:08:06]} {[%emt 00:00:04]} 35. c3 {[%clk 00:01:17]}
{[%emt 00:00:20]} Qb3 {[%clk 00:04:40]} {[%emt 00:03:56]} 36. Rc1 {[%clk
00:01:18]} {[%emt 00:00:29]} Qc4 {[%clk 00:04:37]} {[%emt 00:00:33]} 37. g3
{[%clk 00:01:07]} {[%emt 00:00:42]} Rc8 {[%clk 00:03:38]} {[%emt 00:01:28]} 38.
Qxa2 {[%clk 00:00:36]} {[%emt 00:01:01]} Qc6 {[%clk 00:03:53]} {[%emt
00:00:15]} 39. Qb2 {[%clk 00:00:36]} {[%emt 00:00:30]} Qf3 {[%clk 00:02:54]}
{[%emt 00:01:29]} 40. Nf6+ {[%clk 00:00:53]} {[%emt 00:00:14]} Kh8 {[%clk
00:03:20]} {[%emt 00:00:03]} 41. Qd2 {[%clk 00:24:29]} {[%emt 00:06:53]} Bxh6
{[%clk 00:29:46]} {[%emt 00:04:05]} 42. Kb2 {[%clk 00:17:41]} {[%emt 00:07:17]}
Bg7 {[%clk 00:25:03]} {[%emt 00:05:12]} 43. Rd1 {[%clk 00:10:49]} {[%emt
00:07:22]} Qxg3 {[%clk 00:23:15]} {[%emt 00:02:19]} 44. Ne4 {[%clk 00:09:18]}
{[%emt 00:02:00]} Qh4 {[%clk 00:20:10]} {[%emt 00:03:34]} 45. Qe3 {[%clk
00:05:35]} {[%emt 00:04:14]} Qe7 {[%clk 00:15:53]} {[%emt 00:04:48]} 46. Ra1
{[%clk 00:05:37]} {[%emt 00:00:27]} Rf8 {[%clk 00:12:56]} {[%emt 00:03:27]} 47.
Ra7 {[%clk 00:05:42]} {[%emt 00:00:25]} Qh4 {[%clk 00:13:19]} {[%emt 00:00:07]}
48. b5 {[%clk 00:05:25]} {[%emt 00:00:47]} Bh6 {[%clk 00:13:16]} {[%emt
00:00:32]} 49. b6 {[%clk 00:04:30]} {[%emt 00:01:26]} Bxf4 {[%clk 00:11:21]}
{[%emt 00:02:25]} 50. Qc5 {[%clk 00:04:54]} {[%emt 00:00:06]} Kg7 {[%clk
00:10:50]} {[%emt 00:01:01]} 51. Ra5 {[%clk 00:02:33]} {[%emt 00:02:52]} Qe1
{[%clk 00:10:53]} {[%emt 00:00:26]} 52. Nd6 {[%clk 00:02:16]} {[%emt 00:00:47]}
Qc1+ {[%clk 00:10:34]} {[%emt 00:00:48]} 53. Kb3 {[%clk 00:02:24]} {[%emt
00:00:24]} Be3 {[%clk 00:10:59]} {[%emt 00:00:04]} 54. Qc6 {[%clk 00:00:45]}
{[%emt 00:02:09]} Bxb6 {[%clk 00:09:48]} {[%emt 00:01:41]} 55. Rb5 {[%clk
00:01:12]} {[%emt 00:00:03]} Qb1+ {[%clk 00:08:13]} {[%emt 00:02:06]} 56. Kc4
{[%clk 00:01:29]} {[%emt 00:00:12]} Qf1+ {[%clk 00:08:40]} {[%emt 00:00:03]} 57.
Kb3 {[%clk 00:01:45]} {[%emt 00:00:14]} Qd1+ {[%clk 00:07:39]} {[%emt
00:01:31]} 58. Kb4 {[%clk 00:01:41]} {[%emt 00:00:35]} Bf2 {[%clk 00:05:39]}
{[%emt 00:02:30]} 59. Rb7 {[%clk 00:01:51]} {[%emt 00:00:19]} Bg3 {[%clk
00:05:11]} {[%emt 00:00:58]} 60. Nxf7 {[%clk 00:00:38]} {[%emt 00:01:44]} Rxf7
{[%clk 00:03:30]} {[%emt 00:02:10]} 61. Rxf7+ {[%clk 00:01:05]} {[%emt
00:00:03]} Kxf7 {[%clk 00:03:41]} {[%emt 00:00:19]} 62. Qc7+ {[%clk 00:00:40]}
{[%emt 00:00:53]} Ke8 {[%clk 00:02:18]} {[%emt 00:01:54]} 63. Qxh7 {[%clk
00:00:56]} {[%emt 00:00:14]} Qg4+ {[%clk 00:02:15]} {[%emt 00:00:32]} 64. Kc5
{[%clk 00:00:48]} {[%emt 00:00:39]} Bxe5 {[%clk 00:02:39]} {[%emt 00:00:06]} 65.
Qg8+ {[%clk 00:01:06]} {[%emt 00:00:12]} Ke7 {[%clk 00:03:01]} {[%emt
00:00:08]} 0-1

[Event "Schack-SM 2023: Mastarklassen-elit"]
[Site "Helsingborg Arena, Mellersta Stenbocksgatan 14, Helsingborg, Sweden"]
[Date "2023.07.06"]
[Round "6.4"]
[White "Wiedenkeller, Michael"]
[Black "Lokander, Martin"]
[Result "1/2-1/2"]
[TimeControl "90 minutes for 40 moves + 30 minutes for the rest of games + 30 seconds per move from move one."]
[WhiteTitle "IM"]
[BlackTitle "IM"]
[WhiteElo "2445"]
[BlackElo "2444"]

1. d4 {[%clk 01:30:40]} {[%emt 00:00:19]} Nf6 {[%clk 01:30:34]} {[%emt
00:00:26]} 2. Bg5 {[%clk 01:29:20]} {[%emt 00:01:51]} Ne4 {[%clk 01:29:49]}
{[%emt 00:01:15]} 3. Bf4 {[%clk 01:29:32]} {[%emt 00:00:17]} c5 {[%clk
01:29:35]} {[%emt 00:00:46]} 4. f3 {[%clk 01:28:52]} {[%emt 00:01:09]} Qa5+
{[%clk 01:29:31]} {[%emt 00:00:34]} 5. c3 {[%clk 01:28:31]} {[%emt 00:00:51]}
Nf6 {[%clk 01:29:48]} {[%emt 00:00:13]} 6. d5 {[%clk 01:28:43]} {[%emt
00:00:18]} e6 {[%clk 01:26:59]} {[%emt 00:03:19]} 7. e4 {[%clk 01:26:21]}
{[%emt 00:02:52]} exd5 {[%clk 01:27:16]} {[%emt 00:00:14]} 8. exd5 {[%clk
01:26:42]} {[%emt 00:00:08]} d6 {[%clk 01:27:28]} {[%emt 00:00:18]} 9. Qd2
{[%clk 01:15:39]} {[%emt 00:11:32]} Be7 {[%clk 01:23:21]} {[%emt 00:04:38]} 10.
c4 {[%clk 01:10:39]} {[%emt 00:05:30]} Qd8 {[%clk 01:22:33]} {[%emt 00:01:19]}
11. Ne2 {[%clk 01:03:56]} {[%emt 00:07:12]} O-O {[%clk 01:22:03]} {[%emt
00:01:00]} 12. Ng3 {[%clk 01:03:52]} {[%emt 00:00:33]} b5 {[%clk 01:20:10]}
{[%emt 00:02:24]} 13. Nc3 {[%clk 00:58:28]} {[%emt 00:05:54]} b4 {[%clk
01:19:10]} {[%emt 00:01:31]} 14. Nd1 {[%clk 00:58:20]} {[%emt 00:00:37]} Ne8
{[%clk 01:17:25]} {[%emt 00:02:16]} 15. Bd3 {[%clk 00:55:25]} {[%emt 00:03:23]}
f5 {[%clk 01:17:44]} {[%emt 00:00:12]} 16. Qc2 {[%clk 00:54:15]} {[%emt
00:01:39]} g6 {[%clk 01:17:01]} {[%emt 00:01:14]} 17. Bd2 {[%clk 00:48:03]}
{[%emt 00:06:42]} a5 {[%clk 01:16:11]} {[%emt 00:01:20]} 18. a4 {[%clk
00:44:56]} {[%emt 00:03:36]} Bf6 {[%clk 01:15:40]} {[%emt 00:01:02]} 19. O-O
{[%clk 00:43:37]} {[%emt 00:01:49]} Nd7 {[%clk 01:14:56]} {[%emt 00:01:14]} 20.
f4 {[%clk 00:43:28]} {[%emt 00:00:38]} Nb6 {[%clk 01:13:00]} {[%emt 00:02:27]}
21. Rb1 {[%clk 00:41:44]} {[%emt 00:02:13]} Ra7 {[%clk 01:08:29]} {[%emt
00:05:02]} 22. Nf2 {[%clk 00:41:07]} {[%emt 00:01:06]} Ng7 {[%clk 01:05:03]}
{[%emt 00:03:58]} 23. Rfe1 {[%clk 00:38:56]} {[%emt 00:02:41]} h6 {[%clk
01:02:47]} {[%emt 00:02:45]} 24. Kh1 {[%clk 00:35:55]} {[%emt 00:03:30]} Raf7
{[%clk 00:57:09]} {[%emt 00:06:09]} 25. Nh3 {[%clk 00:35:05]} {[%emt 00:01:20]}
Bh4 {[%clk 00:53:39]} {[%emt 00:04:00]} 26. Re2 {[%clk 00:29:28]} {[%emt
00:06:06]} g5 {[%clk 00:51:20]} {[%emt 00:02:49]} 27. Rbe1 {[%clk 00:23:59]}
{[%emt 00:05:59]} g4 {[%clk 00:51:04]} {[%emt 00:00:47]} 28. Nf2 {[%clk
00:24:11]} {[%emt 00:00:17]} h5 {[%clk 00:48:16]} {[%emt 00:03:19]} 29. Kg1
{[%clk 00:20:44]} {[%emt 00:03:58]} Qf6 {[%clk 00:41:12]} {[%emt 00:07:33]} 30.
Nf1 {[%clk 00:17:53]} {[%emt 00:03:20]} Qg6 {[%clk 00:40:52]} {[%emt 00:00:51]}
31. g3 {[%clk 00:17:34]} {[%emt 00:00:49]} Bf6 {[%clk 00:40:00]} {[%emt
00:01:22]} 32. h4 {[%clk 00:17:32]} {[%emt 00:00:30]} Bd7 {[%clk 00:22:58]}
{[%emt 00:17:34]} 33. b3 {[%clk 00:17:49]} {[%emt 00:00:13]} Nc8 {[%clk
00:23:12]} {[%emt 00:00:16]} 34. Bc1 {[%clk 00:16:39]} {[%emt 00:01:39]} Bc3
{[%clk 00:23:03]} {[%emt 00:00:40]} 35. Bd2 {[%clk 00:16:24]} {[%emt 00:00:44]}
Bd4 {[%clk 00:23:01]} {[%emt 00:00:33]} 36. Be3 {[%clk 00:16:31]} {[%emt
00:00:23]} Bc3 {[%clk 00:22:36]} {[%emt 00:00:55]} 37. Bd2 {[%clk 00:16:53]}
{[%emt 00:00:06]} Bd4 {[%clk 00:22:41]} {[%emt 00:00:26]} 38. Be3 {[%clk
00:17:17]} {[%emt 00:00:06]} Bc3 {[%clk 00:23:08]} {[%emt 00:00:04]} 1/2-1/2

[Event "Schack-SM 2023: Mastarklassen"]
[Site "Helsingborg Arena, Mellersta Stenbocksgatan 14, Helsingborg, Sweden"]
[Date "2023.07.06"]
[Round "6.6"]
[White "Joensson, Jacob"]
[Black "Muntean, Victor"]
[Result "1-0"]
[TimeControl "90 minutes for 40 moves + 30 minutes for the rest of games + 30 seconds per move from move one."]
[WhiteElo "2039"]
[BlackElo "2097"]

1. d4 {[%clk 01:30:58]} {[%emt 00:00:01]} Nf6 {[%clk 01:30:55]} {[%emt
00:00:06]} 2. c4 {[%clk 01:31:24]} {[%emt 00:00:03]} g6 {[%clk 01:31:21]}
{[%emt 00:00:04]} 3. Nc3 {[%clk 01:31:51]} {[%emt 00:00:03]} Bg7 {[%clk
01:31:48]} {[%emt 00:00:03]} 4. e4 {[%clk 01:32:17]} {[%emt 00:00:04]} d6
{[%clk 01:32:14]} {[%emt 00:00:04]} 5. Be2 {[%clk 01:32:43]} {[%emt 00:00:04]}
O-O {[%clk 01:32:38]} {[%emt 00:00:07]} 6. Be3 {[%clk 01:33:09]} {[%emt
00:00:03]} e5 {[%clk 01:32:52]} {[%emt 00:00:17]} 7. d5 {[%clk 01:33:34]}
{[%emt 00:00:04]} Na6 {[%clk 01:31:08]} {[%emt 00:02:14]} 8. h4 {[%clk
01:33:57]} {[%emt 00:00:07]} Nc5 {[%clk 01:30:08]} {[%emt 00:01:30]} 9. Qc2
{[%clk 01:34:06]} {[%emt 00:00:22]} a5 {[%clk 01:28:49]} {[%emt 00:01:49]} 10.
h5 {[%clk 01:33:22]} {[%emt 00:01:14]} Ne8 {[%clk 01:17:55]} {[%emt 00:11:23]}
11. h6 {[%clk 01:30:14]} {[%emt 00:03:38]} Bf6 {[%clk 01:16:53]} {[%emt
00:01:32]} 12. Nh3 {[%clk 01:25:59]} {[%emt 00:04:45]} Be7 {[%clk 01:11:44]}
{[%emt 00:05:39]} 13. g4 {[%clk 01:21:06]} {[%emt 00:05:23]} c6 {[%clk
01:04:15]} {[%emt 00:08:00]} 14. O-O-O {[%clk 01:17:23]} {[%emt 00:04:12]} cxd5
{[%clk 00:56:47]} {[%emt 00:07:59]} 15. Nxd5 {[%clk 01:17:00]} {[%emt
00:00:52]} Ne6 {[%clk 00:51:37]} {[%emt 00:05:39]} 16. f4 {[%clk 01:07:37]}
{[%emt 00:09:54]} exf4 {[%clk 00:50:19]} {[%emt 00:01:48]} 17. Nxe7+ {[%clk
01:07:49]} {[%emt 00:00:18]} Qxe7 {[%clk 00:50:41]} {[%emt 00:00:08]} 18. Nxf4
{[%clk 01:07:57]} {[%emt 00:00:21]} Ng5 {[%clk 00:47:17]} {[%emt 00:03:55]} 19.
Nd5 {[%clk 01:05:11]} {[%emt 00:03:16]} Qd8 {[%clk 00:46:23]} {[%emt 00:01:24]}
20. Rhf1 {[%clk 01:01:30]} {[%emt 00:04:11]} Be6 {[%clk 00:41:43]} {[%emt
00:05:10]} 21. Nf6+ {[%clk 01:01:41]} {[%emt 00:00:19]} 1-0